Workbook

Sheet Project Summary
A1: CASE TYPE BACKLOG TOOL
A2: Release Date: | C2: 2019-10-24 | D2: Tool Version: | F2: v-36 | G2: ="© " & YEAR($C2) &" Pegasystems, Inc. All rights reserved." -> © 2019 Pegasystems, Inc. All rights reserved.
A4: CLIENT / ENGAGEMENT DATA
A5: *Client Name: | F5: * Engagement Name:
A6: *Sizing Generated By: | F6: *Sizing Verified By:
A7: Created: | D7: 2019-06-24T12:21:28 | F7: Last Modified: | I7: 2019-10-02T16:28:36
A9: CHANGE LOG
A10: =NOW() -> 2019-10-24T11:07:49.190 | C10: ="Updates were made to the following tabs: " &Tabs!$C$9 -> Updates were made to the following tabs:

Sheet TCP Extract (hidden)
A1: Name | B1: Value | C1: Units
A2: No. of Case Types | B2: =Calculations!$B$4 -> 0
A3: Average Complexity | B3: =Calculations!$B$5 -> 0
A4: No. of Personas | B4: =Calculations!$B$6 -> 0
A5: No. of New Interfaces | B5: =Calculations!$B$8 -> 0
A6: No. of Existing Interfaces | B6: =Calculations!$B$9 -> 0
A7: No. of Channels | B7: =Scope[[#This Row],[MLP Scope]] -> 0
A8: No. of Reports and Corr | B8: =Calculations!$B$11 -> 0
A9: Co-Production | B9: =IF([0]!StaffMod="Co-Production", "Yes", "No") -> Yes
A10: MLP Duration Low | B10: =IFERROR(HLOOKUP(#REF!,#REF!,6,0),0) -> 0 | C10: Weeks
A11: MLP Duration High | B11: =IFERROR(HLOOKUP(#REF!,#REF!,7,0),0) -> 0 | C11: Weeks
A12: MLP Pega Effort Low | B12: =IFERROR(HLOOKUP(#REF!,#REF!,2,0),0) -> 0 | C12: Hours
A13: MLP Pega Effort High | B13: =IFERROR(HLOOKUP(#REF!,#REF!,3,0),0) -> 0 | C13: Hours
A14: Project Duration Low | B14: =IFERROR(HLOOKUP(#REF!,#REF!,6,0),0) -> 0 | C14: Weeks
A15: Project Duration High | B15: =IFERROR(HLOOKUP(#REF!,#REF!,7,0),0) -> 0 | C15: Weeks
A16: Project Pega Effort Low | B16: =IFERROR(HLOOKUP(#REF!,#REF!,2,0),0) -> 0 | C16: Hours
A17: Project Pega Effort High | B17: =IFERROR(HLOOKUP(#REF!,#REF!,3,0),0) -> 0 | C17: Hours

Sheet Assumptions
A1: ASSUMPTIONS
A2: 1
A3: 2
A4: 3
A5: 4
A6: 5
A7: 6
A8: 7
A9: 8
A10: 9
A11: 10
A12: 11
A13: 12
A14: 13
A15: 14
A16: 15
A17: 16
A18: 17
A19: 18
A20: 19
A21: 20
A22: 21
A23: 22
A24: 23
A25: 24
A26: 25
A27: 26
A28: 27
A29: 28
A30: 29
A31: 30
A32: 31
A33: 32
A34: 33
A35: 34
A36: 35
A37: 36
A38: 37
A39: 38
A40: 39
A41: 40
A42: 41
A43: 42
A44: 43
A45: 44
A46: 45
A47: 46
A48: 47
A49: 48
A50: 49
A51: 50

Sheet Microjourneys
C2: 2
A3: Microjourneys
A4: # | B4: Microjourney | C4: Description
A5: =ROW()-5 -> 0
A6: =ROW()-5 -> 1
A7: =ROW()-5 -> 2
A8: =A7-1 -> 1 | B8: =COUNTA(JourneyList) -> 0
A9: tot | B9: ="'"&Tabs!E2&"'!$B$"&ROW(JourneyList)+1&":$B$"&ROW(JourneyList)+ROWS(JourneyList)-2 -> 'Microjourneys'!$B$6:$B$6

Sheet Case Types
E2: 2
A3: Case Types
A4: # | B4: Case Type | C4: Parent Microjourney(s) (Multi-Select) | D4: Average Complexity | E4: Channels | I4: Assumptions
E5: Call Center / Desktop | F5: Mobile App | G5: Web Self Service | H5: Other
A6: =ROW()-6 -> 0 | D6: <Select> | E6: 1 | F6: 0 | G6: 0 | H6: 0
A7: =ROW()-6 -> 1 | D7: <Select> | E7: 1 | F7: 0 | G7: 0 | H7: 0
A8: =ROW()-6 -> 2 | D8: <Select> | E8: 1 | F8: 0 | G8: 0 | H8: 0
A9: =A8+1 -> 3 | B9: =countunique(Cases)-1 -> 0 | D9: =IFERROR(MAX(SumOfVlookup(Effort,Dropdowns!$K$2:$L$7,"")/$A9,1),0) -> 1 | E9: =IFERROR(AVERAGE(E4:E8),0) -> 1 | F9: =IFERROR(AVERAGE(F4:F8),0) -> 0 | G9: =IFERROR(AVERAGE(G4:G8),0) -> 0 | H9: =IFERROR(AVERAGE(H4:H8),0) -> 0
A10: tot | B10: ="'"&Tabs!E3&"'!$B$"&ROW(Cases)&":$B$"&ROW(Cases)+ROWS(Cases)-2 -> 'Case Types'!$B$6:$B$7 | C10: =DeDupeString(_xlfn.TEXTJOIN(", ",TRUE,AssociatedMicroJ),", ") ->  | D10: Average | E10: Average Percent | F10: Average Percent | G10: Average Percent | H10: Average Percent

Sheet Supporting Features
E2: 2
A3: Supporting Features
A4: # | B4: Feature | C4: Which Case Types is this Feature in support of? (Multi-Select) | D4: Average Complexity | E4: Channels | I4: Assumptions
E5: Call Center / Desktop | F5: Mobile App | G5: Web Self Service | H5: Other
A6: =ROW()-6 -> 0 | D6: <Select> | E6: 1 | F6: 0 | G6: 0 | H6: 0
A7: =ROW()-6 -> 1 | D7: <Select> | E7: 1 | F7: 0 | G7: 0 | H7: 0
A8: =ROW()-6 -> 2 | D8: <Select> | E8: 1 | F8: 0 | G8: 0 | H8: 0
A9: =A8+1 -> 3 | B9: =countunique(Features)-1 -> 0 | D9: =IFERROR(MAX(SumOfVlookup(Effort,Dropdowns!$K$2:$L$6,"")/$A9,1),0) -> 1 | E9: =IFERROR(AVERAGE(E4:E8),0) -> 1 | F9: =IFERROR(AVERAGE(F4:F8),0) -> 0 | G9: =IFERROR(AVERAGE(G4:G8),0) -> 0 | H9: =IFERROR(AVERAGE(H4:H8),0) -> 0
A10: tot | B10: Number of Unique Features | C10: Number of Unique | D10: Average | E10: Average Percent | F10: Average Percent | G10: Average Percent | H10: Average Percent

Sheet Interfaces
F2: 2
A3: Interfaces
A4: # | B4: Interface Name | C4: Service or Connector | D4: Interface / Data Source Type | E4: Complexity | F4: Interface Data Source Exists? | G4: Assumptions
A5: =ROW()-5 -> 0 | C5: <Select> | D5: <Select> | E5: <Select> | F5: <Select>
A6: =ROW()-5 -> 1 | C6: <Select> | D6: <Select> | E6: <Select> | F6: <Select>
A7: =ROW()-5 -> 2 | C7: <Select> | D7: <Select> | E7: <Select> | F7: <Select>
A8: =A7-1 -> 1 | B8: =countunique(B5:B7)-1 -> 0 | E8: =IFERROR(MAX(SumOfVlookup(E5:E7,Dropdowns!$D$2:$E$5,"")/$A8,1),0) -> 1 | F8: =MAX(COUNTIF(F5:F7, "No")+COUNTIF(F5:F7, "Unknown")+COUNTIF(F5:F7, "?Select?")-2,0) -> 1
A9: tot | B9: Number of Unique interfaces | E9: Average Complexity | F9: Number of New or unknown

Sheet Personas
C2: 2
A3: Personas
A4: # | B4: Personas | C4: Assumptions
A5: =ROW()-5 -> 0
A6: =ROW()-5 -> 1
A7: =ROW()-5 -> 2
A8: =A7-1 -> 1 | B8: =COUNTA(RoleList) -> 0
A9: tot | B9: Number of non-blank

Sheet Reports
C2: 2
A3: Reports & Correspondences
A4: # | B4: Report or Correspondence | C4: Average Complexity | D4: MLP Release | E4: Assumptions
A6: =ROW()-6 -> 0 | C6: <Select> | D6: <Select>
A7: =ROW()-6 -> 1 | C7: <Select> | D7: <Select>
A8: =ROW()-6 -> 2 | C8: <Select> | D8: <Select>
A9: =A8-1 -> 1 | B9: =COUNTA(ReportNames) -> 0 | C9: =IFERROR(MAX(SumOfVlookup(Effort,Dropdowns!$K$2:$L$7,"")/$A9,1),0) -> 1
A10: tot | B10: Number of non-blank | C10: Average | D10: =COUNTIF(ReportsMLP,"MLP1") -> 0

Sheet Work Backlog
A1: Case Type Backlog
A2: Work To Do | G2: Interfaces | I2: Personas | K2: Channels | O2: Biz Value | P2: Release | Q2: Sizing Assumptions
A3: # | B3: C or F | C3: Microjourney | D3: Case Type/ Feature | E3: Which case types is this feature in support of? | F3: Average Complexity | K3: Call Center / Desktop | L3: Mobile App | M3: Web Self Service | N3: Other | O3: L/M/H | P3: MLP Release | Q3: Assumptions
A4: =ROW()-4 -> 0 | C4: =IF(NumJourneys >0, IFERROR(_xlfn.IFS(B4="", "", B4="C", VLOOKUP(D4,'Case Types'!$B$6:$C$8,2,0), B4="F",IF(E4 = "All", 'Case Types'!$C$10, SplitAndMatch(E4, "CTMJ", 2)) ), ""),"") ->  | E4: =IFERROR(VLOOKUP(D4,'Supporting Features'!$B$6:$C$8,2,0),"") ->  | F4: <Select> | K4: 0 | L4: 0 | M4: 0 | N4: 0 | O4: <Select> | P4: <Select>
A5: =ROW()-4 -> 1 | B5: C | C5: =IF(NumJourneys >0, IFERROR(_xlfn.IFS(B5="", "", B5="C", VLOOKUP(D5,'Case Types'!$B$6:$C$8,2,0), B5="F",IF(E5 = "All", 'Case Types'!$C$10, SplitAndMatch(E5, "CTMJ", 2)) ), ""),"") ->  | E5: =IFERROR(VLOOKUP(D5,'Supporting Features'!$B$6:$C$8,2,0),"") ->  | F5: <Select> | K5: 1 | L5: 0 | M5: 0 | N5: 0 | O5: <Select>
A6: =ROW()-4 -> 2 | B6: F | C6: =IF(NumJourneys >0, IFERROR(_xlfn.IFS(B6="", "", B6="C", VLOOKUP(D6,'Case Types'!$B$6:$C$8,2,0), B6="F",IF(E6 = "All", 'Case Types'!$C$10, SplitAndMatch(E6, "CTMJ", 2)) ), ""),"") ->  | E6: =IFERROR(VLOOKUP(D6,'Supporting Features'!$B$6:$C$8,2,0),"") ->  | F6: <Select> | K6: 1 | L6: 0 | M6: 0 | N6: 0 | O6: <Select>
A7: =ROW()-4 -> 3 | B7: F | C7: =IF(NumJourneys >0, IFERROR(_xlfn.IFS(B7="", "", B7="C", VLOOKUP(D7,'Case Types'!$B$6:$C$8,2,0), B7="F",IF(E7 = "All", 'Case Types'!$C$10, SplitAndMatch(E7, "CTMJ", 2)) ), ""),"") ->  | E7: =IFERROR(VLOOKUP(D7,'Supporting Features'!$B$6:$C$8,2,0),"") ->  | F7: <Select> | K7: 0 | L7: 0 | M7: 0 | N7: 0 | O7: <Select> | P7: <Select>
A8: =A7-1 -> 2 | D8: =COUNTA(Case_Types) -> 0 | F8: ="$F$"&ROW(AvgComplexity)+1&":$F$"&ROW(AvgComplexity)+ROWS(AvgComplexity)-2 -> $F$5:$F$7 | K8: =ADDRESS(ROW(CallCenter)+1,COLUMN(CallCenter))&":"&ADDRESS(ROW(CallCenter)+ROWS(CallCenter)-2,COLUMN(CallCenter)) -> $K$5:$K$7 | L8: =ADDRESS(ROW(MobileApp)+1,COLUMN(MobileApp))&":"&ADDRESS(ROW(MobileApp)+ROWS(MobileApp)-2,COLUMN(MobileApp)) -> $L$5:$L$7 | M8: =ADDRESS(ROW(WebSelfServ)+1,COLUMN(WebSelfServ))&":"&ADDRESS(ROW(WebSelfServ)+ROWS(WebSelfServ)-2,COLUMN(WebSelfServ)) -> $M$5:$M$7 | N8: =ADDRESS(ROW(Other)+1,COLUMN(Other))&":"&ADDRESS(ROW(Other)+ROWS(Other)-2,COLUMN(Other)) -> $N$5:$N$7
A9: 6 | F9: =IFERROR(MAX(SumOfVlookup(INDIRECT(F8),Dropdowns!$K$2:$L$7,"")/$A8,1),0) -> 1 | K9: =IFERROR((SUM(INDIRECT(K8)))/(RowCount),0) -> 1 | L9: =IFERROR((SUM(INDIRECT(L8)))/(RowCount),0) -> 0 | M9: =IFERROR((SUM(INDIRECT(M8)))/(RowCount),0) -> 0 | N9: =IFERROR((SUM(INDIRECT(N8)))/(RowCount),0) -> 0
A10: =COUNTIFS(D4:D7,"<>"&"",$P4:$P7,"MLP1") -> 0 | D10: MLP | F10: =IFERROR(MAX(SumOfVlookup(F4:F7,Dropdowns!$K$2:$L$7,"MLP1")/MLPCnt,1),0) -> 0 | G10: =IF(MIN(COUNTIFS(G4:G7,"<>"&"",$P4:$P7,"MLP1"),1)=1, VLOOKUP(G3,Interfaces!$B5:$F7,5,0),0) -> 0 | H10: =IF(MIN(COUNTIFS(H4:H7,"<>"&"",$P4:$P7,"MLP1"),1)=1, VLOOKUP(H3,Interfaces!$B5:$F7,5,0),0) -> 0 | I10: =MIN(COUNTIFS(I4:I7,"<>"&"",$P4:$P7,"MLP1"),1) -> 0 | J10: =MIN(COUNTIFS(J4:J7,"<>"&"",$P4:$P7,"MLP1"),1) -> 0 | K10: =IFERROR(SUMIF($P4:$P7,"MLP1",K4:K7)/MLPCnt,0) -> 0 | L10: =IFERROR(SUMIF($P4:$P7,"MLP1",L4:L7)/MLPCnt,0) -> 0 | M10: =IFERROR(SUMIF($P4:$P7,"MLP1",M4:M7)/MLPCnt,0) -> 0 | N10: =IFERROR(SUMIF($P4:$P7,"MLP1",N4:N7)/MLPCnt,0) -> 0 | P10: =COUNTIF($P4:$P7,"MLP1") -> 0

Sheet Project Attributes
A1: PROJECT ATTRIBUTES
A2: ATTRIBUTE TYPE | B2: ATTRIBUTE NAME | D2: ATTRIBUTE VALUE | F2: PROJECT ASSUMPTIONS
A3: Platform / Application Info | B3: Pega Version: | D3: 8.3
B4: Application Name:
B5: Application Version:
A7: Co-Production | B7: Staffing Model: | D7: Co-Production
B8: Engagement Lead: | D8: Pega Led / Client Co-Prod
A10: Delivery | B10: Delivery Methodology: | D10: Agile/Scrum
B11: Scrum Maturity: | D11: High
B12: Number of Scrum Teams | D12: 1
A14: Other Attributes | B14: Pega Cloud or Existing On-Prem Instance: | D14: Yes
B15: Data Import/Conversion Required: | D15: None
B16: Localization (Enter # of additional languages): | D16: 0
B17: Highly Regulated or Complex Company: | D17: No
A19: Special Packages in MLP1 | B19: Robotics (10-week package implementation): | D19: No | F19: =IFERROR(VLOOKUP(RobotFlag,Calculations!$Q$32:$V$43,2,0),"") -> 
B20: Mktg & Dec Quick Win Package: | D20: None | F20: =IFERROR(VLOOKUP(DSMpkg,Calculations!$Q$32:$V$43,2,0),"") -> 
A22: Risk | B22: Other Contingencies (QA, Risk, etc.): | D22: 0

Sheet Reference Sizing
D1: Reference Sizing Chart
D5: PARAMETERS FOR SIZING | I5: ENGAGEMENT SCOPE | N5: ESTIMATE RESULTS
I6: MLP Scope | J6: Full Program | N6: CATEGORY | O6: SUB-CATEGORY | Q6: DETAIL
D7: Process Complexity | E7: Case Types & Features | I7: =Calculations!B4 -> 0 | J7: =Calculations!C4 -> 0 | N7: Staffing Model | O7: =IF(CoProdFlag, "", "Not ") & "Co-Production" -> Co-Production | P7: =IFERROR(IF(SEARCH("Partner", 'Project Attributes'!D8), "Partner", "Pega"), "Pega") -> Pega | Q7: =Table7[[#Totals],[Text]]& IF(OR(RobotFlag="Yes", DSMFlag), CHAR(10)& IF(RobotFlag="Yes", Table5[[#Totals],[text]] & " ", "") & IF(DSMFlag, Table53[[#Totals],[text]], ""),"") -> 1 Scrum Team: 1 EL, 1 (L/S)BA, 1 LSA, 2 (S)SA, ½ UX/UI
E8: Average Complexity | I8: =IF(I7>0,Calculations!S4,"") ->  | J8: =IF(J7>0,Calculations!V4,"") ->  | P8: Client (full time) | Q8: =Table8[[#Totals],[Text]] -> 1 Product Owner, 1 Test Lead, 2 Tester, 1 Pega Certified BA, 2 Pega Certified SA
E9: Personas | I9: =Calculations!B6 -> 0 | J9: =Calculations!C6 -> 0 | N9: MLP1 First Release | O9: MLP Duration | Q9: =Calculations!B39&"-"&Calculations!C39 & " weeks" -> 2-3 weeks
O10: (Based on staffing model above) | Q10: =IF(Calculations!B18="No", "Timeline may be impacted if On-Prem env is not provisioned prior to kickoff ","") -> 
E11: Channels | I11: =COUNTIF('Work Backlog'!$K$10:$N$10, ">"&0) -> 0 | J11: =IF(J7>0, COUNTIF('Work Backlog'!$K$9:$N$9, ">"&0),0) -> 0 | O11: MLP Total Hours | Q11: =TEXT(Calculations!B42,LocNumFormat)&"-"&TEXT(Calculations!C42,LocNumFormat) -> 1,000-1,240 | V11: =#REF! ->  | Z11: =IF(#REF!>0,#REF!&"-"&#REF!&" weeks", "MLP scope not defined") -> 
D12: Integration | E12: New Interfaces | I12: =Calculations!B8 -> 0 | J12: =Calculations!C8 -> 1 | O12: ="MLP "&P7&" Hours" -> MLP Pega Hours | Q12: =TEXT(Calculations!B40,LocNumFormat)&"-"&TEXT(Calculations!C40,LocNumFormat) -> 500-600
E13: Existing Interfaces | I13: =Calculations!B9 -> 0 | J13: =Calculations!C9 -> 0 | O13: MLP Client Hours | Q13: =TEXT(Calculations!B41,LocNumFormat)&"-"&TEXT(Calculations!C41,LocNumFormat) -> 500-640 | V13: =#REF! ->  | Z13: =IF(#REF!>0,#REF!&"-"&#REF!, "MLP scope not defined") -> 
D14: Reports | E14: Reports & Correspondences | I14: =Calculations!B11 -> 0 | J14: =Calculations!C11 -> 0 | N14: Full Program (MLP1 & all future releases) | O14: Full Program Duration | Q14: =Calculations!D39&"-"&Calculations!E39 & " weeks" -> 3-5 weeks | V14: =#REF! ->  | Z14: =#REF!&"-"&#REF!& " weeks" -> 
O15: (Based on staffing model above) | Q15: =IF(Calculations!B18="No", "Timeline may be impacted if On-Prem env is not provisioned prior to kickoff ","") -> 
E16: Average Complexity | I16: =IF(I14>0,Calculations!S5,"") ->  | J16: =IF(J14>0,Calculations!V5,"") ->  | O16: Total Hours | Q16: =TEXT(Calculations!D42,LocNumFormat)&"-"&TEXT(Calculations!E42,LocNumFormat) -> 1,200-2,030 | V16: =#REF! ->  | Z16: =#REF!& "-" &#REF! -> 
D17: Other Attributes | E17: Special Project Attributes | I17: =IF(Calculations!Q18, Calculations!S18,"") ->  | O17: =P7 & " Hours" -> Pega Hours | Q17: =TEXT(Calculations!D40,LocNumFormat)&"-"&TEXT(Calculations!E40,LocNumFormat) -> 600-1,000
O18: Client Hours | Q18: =TEXT(Calculations!D41,LocNumFormat)&"-"&TEXT(Calculations!E41,LocNumFormat) -> 600-1,030

Sheet Calculations (hidden)
A1: CALCULATIONS, FACTORS, & OTHER DATA ELEMENTS
A2: Calculations | I2: Factors | P2: Other Data/Calc Elements
A3: Parameters | B3: MLP Scope | C3: Full Program | D3: MLP Hours | E3: Full Hours | I3: Parameter | J3: Hours | K3: Effort Factor | L3: Minimum | P3: Complexity Type | Q3: MLP Low | R3: MLP High | S3: MLP | T3: Full Low | U3: Full High | V3: Full
A4: Number of Case Types & Features | B4: ='Work Backlog'!$A$10 -> 0 | C4: ='Work Backlog'!D8 -> 0 | D4: =ROUND(Scope[[#This Row],[MLP Scope]]*$J4,0) -> 0 | E4: =ROUND(Scope[[#This Row],[Full Program]]*$J4,0) -> 0 | I4: Number of Case Types & Features | J4: 12 | P4: Case/Features Complexity | Q4: =IFERROR(VLOOKUP(ROUNDDOWN($B$5,0),Dropdowns!$J$3:$K$7,2,0), "OOTB") -> OOTB | R4: =IFERROR(VLOOKUP(ROUNDUP($B$5,0),Dropdowns!$J$3:$K$7,2,0), "OOTB") -> OOTB | S4: =IF(Q4<>R4,Q4&"-"&R4,Q4) -> OOTB | T4: =VLOOKUP(ROUNDDOWN($C$5,0),Dropdowns!$J$3:$K$7,2,0) -> OOTB | U4: =VLOOKUP(ROUNDUP($C$5,0),Dropdowns!$J$3:$K$7,2,0) -> OOTB | V4: =IF(T4<>U4,T4&"-"&U4,T4) -> OOTB
A5: Average Complexity (Case & Features) | B5: ='Work Backlog'!$F$10 -> 0 | C5: ='Work Backlog'!$F$9 -> 1 | D5: =MAX(ROUND((Scope[[#This Row],[MLP Scope]]-1)*$K5*$D4,0)-D4,0) -> 0 | E5: =MAX(ROUND((Scope[[#This Row],[Full Program]]-1)*$K5*$E4,0)-E4,0) -> 0 | I5: Average Complexity (Case & Features) | K5: 1.5 | P5: Report Complexity | Q5: =IFERROR(VLOOKUP(ROUNDDOWN($B$12,0),Dropdowns!$J$3:$K$7,2,0), "OOTB") -> OOTB | R5: =IFERROR(VLOOKUP(ROUNDUP($B$12,0),Dropdowns!$J$3:$K$7,2,0), "OOTB") -> OOTB | S5: =IF(Q5<>R5,Q5&"-"&R5,Q5) -> OOTB | T5: =VLOOKUP(ROUNDDOWN($C$12,0),Dropdowns!$J$3:$K$7,2,0) -> OOTB | U5: =VLOOKUP(ROUNDUP($C$12,0),Dropdowns!$J$3:$K$7,2,0) -> OOTB | V5: =IF(T5<>U5,T5&"-"&U5,T5) -> OOTB
A6: Number of Personas | B6: =SUM('Work Backlog'!$I$10:$J$10) -> 0 | C6: =Personas!B8 -> 0 | D6: =MAX(ROUND((Scope[[#This Row],[MLP Scope]]-1)*$K6*SUM(D4,D5),0),0) -> 0 | E6: =MAX(ROUND((Scope[[#This Row],[Full Program]]-1)*$K6*SUM(E4,E5),0),0) -> 0 | I6: Number of Personas | K6: 0.02
A7: Number of Channels | B7: =SUM('Work Backlog'!K10:N10) -> 0 | C7: =IF(C4>0, SUM('Work Backlog'!K9:N9),0) -> 0 | D7: =MAX(ROUND((Scope[[#This Row],[MLP Scope]]-1)*$K7*SUM(D4,D5),0),0) -> 0 | E7: =MAX(ROUND((Scope[[#This Row],[Full Program]]-1)*$K7*SUM(E4,E5),0),0) -> 0 | I7: Number of Channels | K7: 0.25
A8: # of New Interface Data Sources | B8: =COUNTIF('Work Backlog'!G10:H10,"No")+COUNTIF('Work Backlog'!G10:H10,"Unknown")+COUNTIF('Work Backlog'!G10:H10,"?Select?") -> 0 | C8: =Interfaces!F8 -> 1 | D8: =ROUND(Scope[[#This Row],[MLP Scope]]*$J8,0) -> 0 | E8: =ROUND(Scope[[#This Row],[Full Program]]*$J8,0) -> 110 | I8: # of New Interface Data Sources | J8: 110 | P8: Flag | Q8: Value | R8: Name | S8: Bullet Item
A9: # of Existing Interface Data Sources | B9: =COUNTIF('Work Backlog'!G10:H10,"Yes") -> 0 | C9: =COUNTIF(Interfaces!$F$5:$F$7, "Yes") -> 0 | D9: =ROUND(Scope[[#This Row],[MLP Scope]]*$J9,0) -> 0 | E9: =ROUND(Scope[[#This Row],[Full Program]]*$J9,0) -> 0 | I9: # of Existing Interface Data Sources | J9: 75 | P9: Meth | Q9: =MethFlag<>"Agile/Scrum" -> FALSE | R9: Waterfall Methodology | S9: =IF(Table818[[#This Row],[Value]],"• "&Table818[[#This Row],[Name]]&CHAR(10), "") -> 
A10: Average Complexity (Interfaces) | B10: =Interfaces!$E$8 -> 1 | C10: =Interfaces!$E$8 -> 1 | D10: =MAX(ROUND((Scope[[#This Row],[MLP Scope]]-2)*$K10*SUM(D8:D9),0),0) -> 0 | E10: =MAX(ROUND((Scope[[#This Row],[Full Program]]-2)*$K10*SUM(E8:E9),0),0) -> 0 | I10: Average Complexity (Interfaces) | K10: 0.5 | P10: Regulated | Q10: =RegulatedFlag="Yes" -> FALSE | R10: Highly Regulated/Complex Company | S10: =IF(Table818[[#This Row],[Value]],"• "&Table818[[#This Row],[Name]]&CHAR(10), "") -> 
A11: Reports & Correspondences | B11: =[0]!NumMLPReports -> 0 | C11: =Reports!B9 -> 0 | D11: =ROUND(Scope[[#This Row],[MLP Scope]]*$J11,0) -> 0 | E11: =ROUND(Scope[[#This Row],[Full Program]]*$J11,0) -> 0 | I11: Reports & Correspondences | J11: 4 | P11: Maturity | Q11: =OR( MaturityFlag="Low", MaturityFlag="Medium") -> FALSE | R11: =[0]!MaturityFlag& " Scrum Maturity" -> High Scrum Maturity | S11: =IF(Table818[[#This Row],[Value]],"• "&Table818[[#This Row],[Name]]&CHAR(10), "") -> 
A12: Average Complexity (Reports) | B12: =Reports!$C$9 -> 1 | C12: =Reports!$C$9 -> 1 | D12: =MAX(IF(Scope[[#This Row],[MLP Scope]]=1,0,ROUND((Scope[[#This Row],[MLP Scope]])*$K12*$D11,0)),0) -> 0 | E12: =MAX(IF(Scope[[#This Row],[Full Program]]=1,0,ROUND((Scope[[#This Row],[Full Program]])*$K12*$E11,0)),0) -> 0 | I12: Average Complexity (Reports) | K12: 2 | P12: Cloud | Q12: =CloudFlag="No" -> FALSE | R12: ="New On-Prem Instance" -> New On-Prem Instance | S12: =IF(Table818[[#This Row],[Value]],"• "&Table818[[#This Row],[Name]]&CHAR(10), "") -> 
A13: Dev Effort Subtotal | D13: =SUBTOTAL(109,Scope[MLP Hours]) -> 0 | E13: =SUBTOTAL(109,Scope[Full Hours]) -> 110 | I13: Staffing Model: | K13: 0.1 | P13: DataConv | Q13: =NOT(DataConversion="None") -> FALSE | R13: Data Import/Conversion | S13: =IF(Table818[[#This Row],[Value]],"• "&Table818[[#This Row],[Name]]&" - "&DataConversion&CHAR(10), "") -> 
A14: Project Level Attributes | B14: MLP Scope | C14: Full Program | D14: MLP Hours | E14: Full Hours | I14: Delivery Methodology: | K14: 0.2 | P14: Localization | Q14: =Localization -> 0 | R14: =Table818[[#This Row],[Value]]&" Additional Language" & IF(Table818[[#This Row],[Value]] <> 1, "s","") -> 0 Additional Languages | S14: =IF(Table818[[#This Row],[Value]]>0,"• "&Table818[[#This Row],[Name]]&CHAR(10), "") -> 
A15: Staffing Model: | B15: =[0]!StaffMod -> Co-Production | C15: =[0]!StaffMod -> Co-Production | D15: =IF(Attributes[[#This Row],[MLP Scope]]<>"Co-Production",0,Scope[[#Totals],[MLP Hours]]*$K13) -> 0 | E15: =Attributes[[#This Row],[MLP Hours]] -> 0 | I15: Scrum Maturity: | K15: 0.075 | P15: Robotics | Q15: =RobotFlag="Yes" -> FALSE | R15: Robotics 10-week package (MLP1) | S15: =IF(Table818[[#This Row],[Value]],"• "&Table818[[#This Row],[Name]]&CHAR(10), "") -> 
A16: Delivery Methodology: | B16: =[0]!MethFlag -> Agile/Scrum | C16: =[0]!MethFlag -> Agile/Scrum | D16: =IF(Attributes[[#This Row],[MLP Scope]]="Agile/Scrum",0,Scope[[#Totals],[MLP Hours]]*$K14) -> 0 | E16: =IF(Attributes[[#This Row],[Full Program]]="Agile/Scrum",0,Scope[[#Totals],[Full Hours]]*$K14) -> 0 | I16: Pega Cloud / Existing On-Prem Instance: | K16: 0.1 | L16: 12 | P16: Marketing & Decisioning | Q16: =DSMFlag -> FALSE | R16: Mktg & Dec | S16: =IF(Table818[[#This Row],[Value]],"• "&Table818[[#This Row],[Name]]&" - "&DSMpkg&CHAR(10), "") -> 
A17: Scrum Maturity: | B17: =[0]!MaturityFlag -> High | C17: =[0]!MaturityFlag -> High | D17: =IF(Attributes[[#This Row],[MLP Scope]]="High",0,IF(Attributes[[#This Row],[MLP Scope]]="Low",2*Scope[[#Totals],[MLP Hours]]*$K15,Scope[[#Totals],[MLP Hours]]*$K15)) -> 0 | E17: =IF(Attributes[[#This Row],[Full Program]]="High",0,IF(Attributes[[#This Row],[Full Program]]="Low",2*Scope[[#Totals],[Full Hours]]*$K15,Scope[[#Totals],[Full Hours]]*$K15)) -> 0 | I17: Data Import/Conversion Required: | K17: 0.1 | P17: FudgeFactor | Q17: =FudgeFactor>0 -> FALSE | R17: =IF(Table818[[#This Row],[Value]],C23*100& "% Contingency Factor","") ->  | S17: =IF(Table818[[#This Row],[Value]],"• "&Table818[[#This Row],[Name]]&CHAR(10), "") -> 
A18: Pega Cloud / Existing On-Prem Instance: | B18: ='Project Attributes'!$D$14 -> Yes | C18: ='Project Attributes'!$D$14 -> Yes | D18: =IF(Attributes[[#This Row],[MLP Scope]]="Yes",0,Scope[[#Totals],[MLP Hours]]*$K16) -> 0 | E18: =IF(Attributes[[#This Row],[Full Program]]="Yes",0,Scope[[#Totals],[Full Hours]]*$K16) -> 0 | I18: Localization (Enter # of additional languages): | K18: 0.1 | P18: Flag | Q18: =OR(Table818[Value]) -> FALSE | S18: =IFERROR(LEFT(S9&S10&S11&S12&S13&S14&S15&S16&S17, LEN(S9&S10&S11&S12&S13&S14&S15&S16&S17)-1),"") -> 
A19: Data Import/Conversion Required: | B19: ='Project Attributes'!$D$15 -> None | C19: ='Project Attributes'!$D$15 -> None | D19: =VLOOKUP(Attributes[[#This Row],[MLP Scope]],Dropdowns!$D$19:$E$22,2,0)*Scope[[#Totals],[MLP Hours]]*$K17 -> 0 | E19: =VLOOKUP(Attributes[[#This Row],[Full Program]],Dropdowns!$D$19:$E$22,2,0)*Scope[[#Totals],[Full Hours]]*$K17 -> 0 | I19: Robotics | J19: 736 | L19: 10
A20: Localization (Enter # of additional languages): | B20: ='Project Attributes'!$D$16 -> 0 | C20: ='Project Attributes'!$D$16 -> 0 | D20: =Attributes[[#This Row],[MLP Scope]]*K18*Scope[[#Totals],[MLP Hours]] -> 0 | E20: =Attributes[[#This Row],[Full Program]]*K18*Scope[[#Totals],[Full Hours]] -> 0 | I20: Highly Regulated or Complex Company: | K20: 0.2
A21: Highly Regulated or Complex Company: | B21: ='Project Attributes'!$D$17 -> No | C21: ='Project Attributes'!$D$17 -> No | D21: =IF(Attributes[[#This Row],[MLP Scope]]="No",0,Scope[[#Totals],[MLP Hours]]*$K20) -> 0 | E21: =IF(Attributes[[#This Row],[Full Program]]="No",0,Scope[[#Totals],[Full Hours]]*$K20) -> 0 | P21: Other Constants
A22: Mktg & Dec Quick Win | B22: ='Project Attributes'!D20 -> None | C22: ='Project Attributes'!D20 -> None | D22: =VLOOKUP(Attributes[[#This Row],[MLP Scope]],Table3[],2,0) -> 0 | E22: =VLOOKUP(Attributes[[#This Row],[Full Program]],Table3[],2,0) -> 0 | P22: Name | Q22: Value | R22: Description
A23: Other Contingencies (QA, Risk, etc.): | B23: ='Project Attributes'!$D$22 -> 0 | C23: ='Project Attributes'!$D$22 -> 0 | D23: =Attributes[[#This Row],[MLP Scope]]*(Scope[[#Totals],[MLP Hours]]+D22+D29) -> 0 | E23: =Attributes[[#This Row],[Full Program]]*(Scope[[#Totals],[Full Hours]]+E22+E29) -> 0 | I23: Marketing | P23: Localized Number format | Q23: ="#"&GetThousandsSep()&"##0" -> #,##0 | R23: Localized number format based on pc settings
A24: Project Level Impact | D24: =SUBTOTAL(109,Attributes[MLP Hours]) -> 0 | E24: =SUBTOTAL(109,Attributes[Full Hours]) -> 0 | I24: DSM: Quick Win Pacakge | J24: Hours | P24: Co-Production Flag | Q24: =IF('Project Attributes'!D7="Co-Production", TRUE,FALSE) -> TRUE
A25: Subtotal Including Attribute Adjustment | D25: =Attributes[[#Totals],[MLP Hours]]+Scope[[#Totals],[MLP Hours]] -> 0 | E25: =Attributes[[#Totals],[Full Hours]]+Scope[[#Totals],[Full Hours]] -> 110 | I25: None | J25: 0 | P25: Overhead Max | Q25: 2.25 | R25: The max overhead allowed
A26: Subtotal Adjusted for overhead | B26: =MAX(MIN(Scope[[#Totals],[MLP Hours]]/$Q$27,$Q$25),$Q$26) -> 1 | C26: =MAX(MIN(Scope[[#Totals],[Full Hours]]/$Q$27,$Q$25),$Q$26) -> 1 | D26: =D25*Adjustments[[#This Row],[Column2]] -> 0 | E26: =E25*Adjustments[[#This Row],[Column3]] -> 110 | I26: Real-Time Cross-Sell Up Sell | J26: 1200 | P26: Overhead Min | Q26: 1 | R26: The min overhead
A27: Man Weeks | D27: =D26/40 -> 0 | E27: =E26/40 -> 2.75 | I27: Real-Time Retention | J27: 1600 | P27: Overhead sliding factor | Q27: 200 | R27: used to calculate overhead based on dev hours
A28: Actual Weeks based on resources + 2 for Sprint0 | B28: =MAX(PegaDevCnt+ClientDevCnt,1) -> 10.5 | C28: =MAX(PegaDevCnt+ClientDevCnt,1) -> 10.5 | D28: =ROUNDUP(D27/B28,0)+2 -> 2 | E28: =ROUNDUP(E27/C28,0)+2 -> 3 | I28: Real Time Web Personalization | J28: 1400
A29: Robotics: | B29: ='Project Attributes'!$D$19 -> No | C29: ='Project Attributes'!$D$19 -> No | D29: =IF(Adjustments[[#This Row],[Column2]]="Yes",$J$19,0) -> 0 | E29: =IF(Adjustments[[#This Row],[Column3]]="Yes",$J$19,0) -> 0 | I29: DSM Flag | J29: =NOT(DSMpkg = "None") -> FALSE
A30: Full Time PO | B30: =Staffing!$E$12 -> 1 | C30: =Staffing!$E$12 -> 1 | D30: =Adjustments[[#This Row],[Column2]]*$D$28*40 -> 80 | E30: =Adjustments[[#This Row],[Column3]]*$E$28*40 -> 120 | P30: Auto Assumptions
A31: Full Time EL | B31: =Staffing!$E$2 -> 1 | C31: =Staffing!$E$2 -> 1 | D31: =Adjustments[[#This Row],[Column2]]*$D$28*40 -> 80 | E31: =Adjustments[[#This Row],[Column3]]*$E$28*40 -> 120 | P31: Parameter | Q31: Option | R31: Assumption
A32: 10% PL (per EL) | B32: =B31 -> 1 | C32: =C31 -> 1 | D32: =D28*4*Adjustments[[#This Row],[Column2]] -> 8 | E32: =E28*4*Adjustments[[#This Row],[Column3]] -> 12 | P32: Robotics | Q32: Yes | R32: Controlled enablement process which produces specific outcomes in a 10-12 week period. The journey includes: Delivery of 1 - 3 high-value (medium complexity) automations, ability to support in real world environment, foundation to expand what was built, and “Bucket” of post go-live support hours
A33: Total | D33: =SUM(D29:D32)+D26 -> 168 | E33: =SUM(E29:E32)+E26 -> 362
A34: Pega Hours | D34: =MAX(SUM(PegaDevCnt*40*D28,D31,D32,D29),0) -> 448 | E34: =MAX(SUM(PegaDevCnt*40*E28,E31,E32,E29),0) -> 672
A35: Client Hours | D35: =SUM(ClientDevCnt*40*D28,D32) -> 488 | E35: =SUM(ClientDevCnt*40*E28,E32) -> 732 | P35: Marketing and Decisioning | Q35: Real-Time Cross-Sell Up Sell | R35: In about 10 weeks your agents will be providing optimal upsell & cross-sell offers to your customers - with no disruption to your current business, and with minimal IT resource investment on your part. For more info go here: https://saleshub.pega.com/resources/pega-quick-win-packages
A37: Range | B37: 0.9 | C37: 1.3 | D37: =IF(Adjustments[[#Totals],[Column4]]=Adjustments[[#Totals],[Column5]],B37,0.8) -> 0.8 | E37: =IF(Adjustments[[#Totals],[Column4]]=Adjustments[[#Totals],[Column5]],C37,1.4) -> 1.4
A38: Project Estimate | B38: MLP Low | C38: MLP High | D38: Full Low | E38: Full High | Q38: Real-Time Retention | R38: In about 10 weeks your agents will be providing optimal retention offers to your customers - with no disruption to your current business, and with minimal IT resource investment on your part. For more info go here: https://saleshub.pega.com/resources/pega-quick-win-packages
A39: Duration in Weeks | B39: =MAX(ROUNDUP(D28*$B$37,0),1, IF(B29="Yes",L19)) -> 2 | C39: =MAX(ROUNDUP(D28*$C$37,0),1+Table18[[#This Row],[MLP Low]], IF(B29="Yes",L19)) -> 3 | D39: =MAX(ROUNDUP(E28*$D$37,0),1, IF(C29="Yes",L19)) -> 3 | E39: =MAX(ROUNDUP(E28*$E$37,0),1+Table18[[#This Row],[Full Low]], IF(C29="Yes",L19)) -> 5
A40: Pega Hours | B40: =ROUNDUP(D34*$B$37,-2) -> 500 | C40: =ROUNDUP(D34*$C$37,-2) -> 600 | D40: =ROUNDUP(E34*$D$37,-2) -> 600 | E40: =ROUNDUP(E34*$E$37,-2) -> 1000
A41: Client Hours | B41: =ROUNDUP(D35*$B$37,-2) -> 500 | C41: =ROUNDUP(D35*$C$37,-1) -> 640 | D41: =ROUNDUP(E35*$D$37,-2) -> 600 | E41: =ROUNDUP(E35*$E$37,-1) -> 1030 | Q41: Real Time Web Personalization | R41: In about 10 weeks you will implement 1-1 Next Best Action personalization on your webpages - with no disruption to your current business, and with minimal IT resource investment on your part. For more info go here: https://saleshub.pega.com/resources/pega-quick-win-packages
B42: =SUM(B40:B41) -> 1000 | C42: =SUM(C40:C41) -> 1240 | D42: =SUM(D40:D41) -> 1200 | E42: =SUM(E40:E41) -> 2030
P46: Special QuickWin Pacakges
P47: Flag | Q47: Name | R47: Item Maturity | S47: Type | T47: Complexity | U47: Release | V47: Iteration | W47: Web | X47: Call Center | Y47: Mobile | Z47: Blank | AA47: Other | AB47: Override
P48: =Table9[[#This Row],[Override]]>0 -> FALSE | Q48: Robotics | R48: New | S48: Epic | T48: Low | U48: R1 | AB48: =E29 -> 0
P49: =Table9[[#This Row],[Override]]>0 -> FALSE | Q49: ="DSM - " &DSMpkg -> DSM - None | R49: New | S49: Epic | T49: Low | U49: R1 | AB49: =E22 -> 0
P50: =COUNTIF(Table9[Flag],TRUE) -> 0 | AB50: =COUNTIF(Table9[Override],">"&0) -> 0
P53: Other Contingencies
P54: Flag | Q54: Name | R54: Export Name | S54: Percent
P55: =VLOOKUP(Table4[[#This Row],[Name]],Attributes[],5,0)>0 -> FALSE | Q55: Delivery Methodology: | R55: Non Scrum | S55: =VLOOKUP(Table4[[#This Row],[Name]],Table11[[Parameter]:[Effort Factor]],3,0)*Table4[[#This Row],[Flag]] -> 0
P56: =VLOOKUP(Table4[[#This Row],[Name]],Attributes[],5,0)>0 -> FALSE | Q56: Scrum Maturity: | R56: ="Scrum maturity: " & C17 -> Scrum maturity: High | S56: =VLOOKUP(Table4[[#This Row],[Name]],Table11[[Parameter]:[Effort Factor]],3,0)*Table4[[#This Row],[Flag]] -> 0
P57: =VLOOKUP(Table4[[#This Row],[Name]],Attributes[],5,0)>0 -> FALSE | Q57: Pega Cloud / Existing On-Prem Instance: | R57: New On-Prem implementation | S57: =VLOOKUP(Table4[[#This Row],[Name]],Table11[[Parameter]:[Effort Factor]],3,0)*Table4[[#This Row],[Flag]] -> 0
P58: =VLOOKUP(Table4[[#This Row],[Name]],Attributes[],5,0)>0 -> FALSE | Q58: Data Import/Conversion Required: | R58: ="Data Conversion: "&C19 -> Data Conversion: None | S58: =VLOOKUP(Table4[[#This Row],[Name]],Table11[[Parameter]:[Effort Factor]],3,0)*Table4[[#This Row],[Flag]]*VLOOKUP(B19,Dropdowns!$D$19:$E$22,2,0) -> 0
P59: =VLOOKUP(Table4[[#This Row],[Name]],Attributes[],5,0)>0 -> FALSE | Q59: Localization (Enter # of additional languages): | R59: ="Additional languages: "& C20 -> Additional languages: 0 | S59: =VLOOKUP(Table4[[#This Row],[Name]],Table11[[Parameter]:[Effort Factor]],3,0)*Table4[[#This Row],[Flag]] -> 0
P60: =VLOOKUP(Table4[[#This Row],[Name]],Attributes[],5,0)>0 -> FALSE | Q60: Highly Regulated or Complex Company: | R60: Highly Regulated or Complex Company | S60: =VLOOKUP(Table4[[#This Row],[Name]],Table11[[Parameter]:[Effort Factor]],3,0)*Table4[[#This Row],[Flag]] -> 0
P61: =VLOOKUP(Table4[[#This Row],[Name]],Attributes[],5,0)>0 -> FALSE | Q61: Other Contingencies (QA, Risk, etc.): | R61: Other Contingencies (QA, Risk, etc.) | S61: =C23*Table4[[#This Row],[Flag]] -> 0
P62: =COUNTIF(Table4[Flag], TRUE) -> 0 | S62: =SUBTOTAL(109,Table4[Percent]) -> 0

Sheet Staffing (hidden)
A1: Pega/Partner | B1: Role | C1: Amt | D1: NumScrumTeams | E1: Total | F1: Text | H1: Export
A2: Pega | B2: EL | C2: 0.5 | D2: =NumScrumTeams -> 1 | E2: =IF(RoboticsOnlyClient, Table7[[#This Row],[Amt]], MAX(ROUNDUP(D2*C2,0),1)) -> 1 | F2: =IF(E2>0,IF(E2<1, VLOOKUP(Table7[[#This Row],[Total]],Table6[],2,0),E2)& " "&B2&", ","") -> 1 EL, | H2: Cnt | I2: CTB Name | J2: Scrum Role | K2: Source | L2: Role | M2: PT % | N2: Productivity | O2: Allocation to Dev
A3: Pega | B3: (L/S)BA | C3: 1 | D3: =IF(OR(RoboticsOnlyClient,DSM_OnlyClient),0,NumScrumTeams) -> 1 | E3: =D3*C3 -> 1 | F3: =IF(E3>0,IF(E3<1, VLOOKUP(Table7[[#This Row],[Total]],Table6[],2,0),E3)& " "&B3&", ","") -> 1 (L/S)BA, | H3: 1 | I3: PL | J3: Other (non-Dev) | K3: ='Reference Sizing'!$P$7 -> Pega | L3: Practice Leader | M3: 0.1 | N3: 1 | O3: 0
A4: Pega | B4: LSA | C4: 1 | D4: =_xlfn.IFS(DSM_OnlyClient,1,RoboticsOnlyClient,0,NOT(AND(RoboticsOnlyClient,DSM_OnlyClient)), NumScrumTeams) -> 1 | E4: 1 | F4: =IF(E4>0,IF(E4<1, VLOOKUP(Table7[[#This Row],[Total]],Table6[],2,0),E4)& " "&B4&", ","") -> 1 LSA, | H4: =VLOOKUP(Table414[[#This Row],[CTB Name]],Table7[[Role]:[Total]],4,0) -> 1 | I4: EL | J4: Scrum Master | K4: ='Reference Sizing'!$P$7 -> Pega | L4: Engagement Leader | M4: 1 | N4: 1 | O4: 0
A5: Pega | B5: (S)SA | C5: =IF(CoProdFlag, 2, 3) -> 2 | D5: =IF(OR(RoboticsOnlyClient,DSM_OnlyClient),0,NumScrumTeams) -> 1 | E5: 2 | F5: =IF(E5>0,IF(E5<1, VLOOKUP(Table7[[#This Row],[Total]],Table6[],2,0),E5)& " "&B5&", ","") -> 2 (S)SA, | H5: =VLOOKUP(Table414[[#This Row],[CTB Name]],Table7[[Role]:[Total]],4,0) -> 1 | I5: (L/S)BA | J5: Team Member | K5: ='Reference Sizing'!$P$7 -> Pega | L5: (L/S) Business Architect | M5: 1 | N5: 1 | O5: 0.5
A6: Pega | B6: UX/UI | C6: 0.5 | D6: =IF(OR(RoboticsOnlyClient,DSM_OnlyClient),0,NumScrumTeams) -> 1 | E6: 0.5 | F6: =IF(E6>0,IF(E6<1, VLOOKUP(Table7[[#This Row],[Total]],Table6[],2,0),E6)& " "&B6&", ","") -> ½ UX/UI, | H6: =VLOOKUP(Table414[[#This Row],[CTB Name]],Table7[[Role]:[Total]],4,0) -> 1 | I6: LSA | J6: Team Member | K6: ='Reference Sizing'!$P$7 -> Pega | L6: Lead System Architect | M6: 1 | N6: 1 | O6: =IF(CoProdFlag, 0.6, 1) -> 0.6
D7: Total Dev Team | E7: =SUBTOTAL(109,Table7[Total])-E2 -> 4.5 | F7: =IF(RoboticsOnlyClient=FALSE,NumScrumTeams&" Scrum Team"&IF(NumScrumTeams>1,"s","")&": ","")&IFERROR(LEFT(F2&F3&F4&F5&F6,LEN(F2&F3&F4&F5&F6)-2),"""") -> 1 Scrum Team: 1 EL, 1 (L/S)BA, 1 LSA, 2 (S)SA, ½ UX/UI | H7: =VLOOKUP(Table414[[#This Row],[CTB Name]],Table7[[Role]:[Total]],4,0) -> 2 | I7: (S)SA | J7: Team Member | K7: ='Reference Sizing'!$P$7 -> Pega | L7: (Sr) System Architect | M7: 1 | N7: 1 | O7: 1
D8: Total Dev incl. DSM | E8: =Table7[[#Totals],[Total]]+(DSM_OnlyClient*Table53[[#Totals],[Amt]]) -> 4.5 | H8: =ROUNDUP(VLOOKUP(Table414[[#This Row],[CTB Name]],Table7[[Role]:[Total]],4,0),0) -> 1 | I8: UX/UI | J8: Team Member | K8: ='Reference Sizing'!$P$7 -> Pega | L8: Experience Designer | M8: =VLOOKUP(Table414[[#This Row],[CTB Name]],Table7[[Role]:[Total]],4,0) -> 0.5 | N8: 1 | O8: 1
H9: =IF(RobotFlag="Yes", ROUNDUP(VLOOKUP(Table414[[#This Row],[CTB Name]],Table5[[Robot Resource]:[Amt]],2,0),0),0) -> 0 | I9: LRBA | J9: Team Member | K9: ='Reference Sizing'!$P$7 -> Pega | L9: Lead Robotics BA | M9: =VLOOKUP(Table414[[#This Row],[CTB Name]],Table5[[Robot Resource]:[Amt]],2,0) -> 0.33 | N9: 1 | O9: 1
H10: =IF(RobotFlag="Yes", ROUNDUP(VLOOKUP(Table414[[#This Row],[CTB Name]],Table5[[Robot Resource]:[Amt]],2,0),0),0) -> 0 | I10: LRSA | J10: Team Member | K10: ='Reference Sizing'!$P$7 -> Pega | L10: Lead Robotics SA | M10: =VLOOKUP(Table414[[#This Row],[CTB Name]],Table5[[Robot Resource]:[Amt]],2,0) -> 0.5 | N10: 1 | O10: 1
A11: Client | B11: Role | C11: Amt | D11: NumScrumTeams | E11: Total | F11: Text | H11: =IF(RobotFlag="Yes", ROUNDUP(VLOOKUP(Table414[[#This Row],[CTB Name]],Table5[[Robot Resource]:[Amt]],2,0),0),0) -> 0 | I11: (S)RSA | J11: Team Member | K11: ='Reference Sizing'!$P$7 -> Pega | L11: (Sr) Robotics SA | M11: =VLOOKUP(Table414[[#This Row],[CTB Name]],Table5[[Robot Resource]:[Amt]],2,0) -> 1 | N11: 1 | O11: 1
A12: Client | B12: Product Owner | C12: 0.5 | D12: =NumScrumTeams -> 1 | E12: =IF(RoboticsOnlyClient,Table8[[#This Row],[Amt]],MAX(ROUNDUP(D12*C12,0),1)) -> 1 | F12: =IF(E12>0,IF(E12<1, VLOOKUP(Table8[[#This Row],[Total]],Table6[],2,0),E12)& " "&B12&", ","")& CHAR(10) -> 1 Product Owner, | H12: =IF(DSMFlag, VLOOKUP(Table414[[#This Row],[CTB Name]],Table53[[DSM]:[Amt]],2,0),0) -> 0 | I12: LDA | J12: Team Member | K12: ='Reference Sizing'!$P$7 -> Pega | L12: Lead Decisioning Architect | M12: 1 | N12: 1 | O12: 1
A13: Client | B13: Test Lead | C13: 1 | D13: =IF(OR(RoboticsOnlyClient,DSM_OnlyClient),0,NumScrumTeams) -> 1 | E13: =D13*C13 -> 1 | F13: =IF(E13>0,IF(E13<1, VLOOKUP(Table8[[#This Row],[Total]],Table6[],2,0),E13)& " "&B13&", ","") -> 1 Test Lead, | H13: =IF(DSMFlag, VLOOKUP(Table414[[#This Row],[CTB Name]],Table53[[DSM]:[Amt]],2,0),0) -> 0 | I13: SDA | J13: Team Member | K13: ='Reference Sizing'!$P$7 -> Pega | L13: Sr. Decisioning Architect | M13: 1 | N13: 1 | O13: 1
A14: Client | B14: Tester | C14: 2 | D14: =_xlfn.IFS(DSM_OnlyClient,0.5,RoboticsOnlyClient,0,NOT(AND(RoboticsOnlyClient,DSM_OnlyClient)), NumScrumTeams) -> 1 | E14: =MAX(D14*C14,1) -> 2 | F14: =IF(E14>0,IF(E14<1, VLOOKUP(Table8[[#This Row],[Total]],Table6[],2,0),E14)& " "&B14&", ","") -> 2 Tester, | H14: =IF(DSMFlag, VLOOKUP(Table414[[#This Row],[CTB Name]],Table53[[DSM]:[Amt]],2,0),0) -> 0 | I14: Mktg & Dec Bus Consultant | J14: Team Member | K14: ='Reference Sizing'!$P$7 -> Pega | L14: Mktg & Dec Bus Consultant | M14: 1 | N14: 1 | O14: 1
A15: Client | B15: Pega Certified BA | C15: 1 | D15: =IF(OR(RoboticsOnlyClient,DSM_OnlyClient),0,NumScrumTeams) -> 1 | E15: =IF(CoProdFlag, ROUNDUP(D15*C15,0),0) -> 1 | F15: =IF(E15>0,IF(E15<1, VLOOKUP(Table8[[#This Row],[Total]],Table6[],2,0),E15)& " "&B15&", ","") -> 1 Pega Certified BA, | H15: =VLOOKUP(Table414[[#This Row],[CTB Name]],Table8[[Role]:[Total]],4,0) -> 1 | I15: Product Owner | J15: Other (non-Dev) | K15: Client | L15: Product Owner | M15: 1 | N15: 1 | O15: 0
A16: Client | B16: Pega Certified SA | C16: 2 | D16: =_xlfn.IFS(DSM_OnlyClient,0.5,RoboticsOnlyClient,0,NOT(AND(RoboticsOnlyClient,DSM_OnlyClient)), NumScrumTeams) -> 1 | E16: =IF(CoProdFlag, ROUNDUP(D16*C16,0),0) -> 2 | F16: =IF(E16>0,IF(E16<1, VLOOKUP(Table8[[#This Row],[Total]],Table6[],2,0),E16)& " "&B16&", ","") -> 2 Pega Certified SA, | H16: =VLOOKUP(Table414[[#This Row],[CTB Name]],Table8[[Role]:[Total]],4,0) -> 1 | I16: Test Lead | J16: Team Member | K16: Client | L16: Test Lead | M16: 1 | N16: 1 | O16: 1
D17: Total Dev Team | E17: =SUBTOTAL(109,Table8[Total])-E12 -> 6 | F17: =IFERROR(LEFT(F12&F13&F14&F15&F16, LEN(F12&F13&F14&F15&F16)-2),"") -> 1 Product Owner, 1 Test Lead, 2 Tester, 1 Pega Certified BA, 2 Pega Certified SA | H17: =VLOOKUP(Table414[[#This Row],[CTB Name]],Table8[[Role]:[Total]],4,0) -> 2 | I17: Tester | J17: Team Member | K17: Client | L17: Tester | M17: 1 | N17: 1 | O17: 1
H18: =VLOOKUP(Table414[[#This Row],[CTB Name]],Table8[[Role]:[Total]],4,0) -> 1 | I18: Pega Certified BA | J18: Team Member | K18: Client | L18: Business Architect | M18: 1 | N18: 0.4 | O18: 1
H19: =VLOOKUP(Table414[[#This Row],[CTB Name]],Table8[[Role]:[Total]],4,0) -> 2 | I19: Pega Certified SA | J19: Team Member | K19: Client | L19: System Architect | M19: 1 | N19: 0.4 | O19: 1
A20: AMT | B20: Text | D20: Robot Resource | E20: Amt | F20: text | H20: =SUBTOTAL(109,Table414[Cnt]) -> 14
A21: 0.25 | B21: ¼ | D21: LRBA | E21: 0.33 | F21: =IF(Table5[[#This Row],[Amt]]<1,VLOOKUP(Table5[[#This Row],[Amt]],Table6[],2,0),Table5[[#This Row],[Amt]])&" "&Table5[[#This Row],[Robot Resource]]&", " -> ⅓ LRBA,
A22: 0.33 | B22: ⅓ | D22: LRSA | E22: 0.5 | F22: =IF(Table5[[#This Row],[Amt]]<1,VLOOKUP(Table5[[#This Row],[Amt]],Table6[],2,0),Table5[[#This Row],[Amt]])&" "&Table5[[#This Row],[Robot Resource]]&", " -> ½ LRSA,
A23: 0.5 | B23: ½ | D23: (S)RSA | E23: 1 | F23: =IF(Table5[[#This Row],[Amt]]<1,VLOOKUP(Table5[[#This Row],[Amt]],Table6[],2,0),Table5[[#This Row],[Amt]])&" "&Table5[[#This Row],[Robot Resource]]&", " -> 1 (S)RSA,
A24: 0.67 | B24: ⅔ | D24: Pega Partner | E24: =SUBTOTAL(109,Table5[Amt]) -> 1.83 | F24: =IFERROR("Robotics: "& LEFT(F21&F22&F23, LEN(F21&F22&F23)-2),"") -> Robotics: ⅓ LRBA, ½ LRSA, 1 (S)RSA
A25: 0.75 | B25: ¾ | D25: Robotics Only | F25: =AND(RobotFlag="Yes", Calculations!E13=0) -> FALSE
D28: DSM | E28: Amt | F28: text
D29: LDA | E29: 1 | F29: =IFERROR(IF(Table53[[#This Row],[Amt]]<1,VLOOKUP(Table53[[#This Row],[Amt]],Table6[],2,0),Table53[[#This Row],[Amt]])&" "&Table53[[#This Row],[DSM]]&", ","") -> 1 LDA,
D30: SDA | E30: 1 | F30: =IFERROR(IF(Table53[[#This Row],[Amt]]<1,VLOOKUP(Table53[[#This Row],[Amt]],Table6[],2,0),Table53[[#This Row],[Amt]])&" "&Table53[[#This Row],[DSM]]&", ","") -> 1 SDA,
D31: Mktg & Dec Bus Consultant | E31: 0 | F31: =IFERROR(IF(Table53[[#This Row],[Amt]]<1,VLOOKUP(Table53[[#This Row],[Amt]],Table6[],2,0),Table53[[#This Row],[Amt]])&" "&Table53[[#This Row],[DSM]]&", ","") -> 
D32: Pega Partner | E32: =SUBTOTAL(109,Table53[Amt]) -> 2 | F32: =IFERROR("DSM: "& LEFT(F29&F30&F31, LEN(F29&F30&F31)-2),"") -> DSM: 1 LDA, 1 SDA
D33: Marketing Only | F33: =AND(DSMFlag, Calculations!E13=0) -> FALSE

Sheet ExportScrumSizing (hidden)
A1: Client/Organization | B1: =IF(ClientName<>"",ClientName,"") -> 
A2: Project | B2: =IF('Project Summary'!I5<>"",'Project Summary'!I5,"") -> 
A4: Area | B4: Grouping
A5: AP ID
A6: AP Mode
A7: AP Label
A9: WT/UC Section | B9: =MAX(Calculations!C4,2)+Table9[[#Totals],[Flag]] -> 2 | C9: Name | D9: Item Maturity | E9: Type | F9: Complexity | G9: Release | H9: Iteration | I9: Web | J9: Call Center | K9: Mobile | L9: Blank | M9: Other | N9: Override
A10: WT/UC Section | B10: 1
A11: WT/UC Section | B11: 1
A12: Interfaces Section | B12: =MAX(SUM(Calculations!C8:C9),2) -> 2 | C12: Name | D12: Type | E12: Complexity | F12: Data source Exists | G12: # Interchanges | H12: Hrs Per Interchange | I12: Release | J12: Iteration | K12: Business Impact
A13: Interfaces Section | B13: 1 | D13: <Select> | E13: <Select> | F13: <Select> | I13: R5
A14: Interfaces Section | B14: 1 | D14: <Select> | E14: <Select> | F14: <Select> | I14: R5
A15: Reports/Corr Section | B15: =MAX(Calculations!C11,2) -> 2 | C15: Name | D15: Type | E15: Business Impact | F15: Complexity | G15: Release | H15: Business Impact | I15: R5
A16: Reports/Corr Section | B16: 1
A17: Reports/Corr Section | B17: 1
A18: Staff Section | B18: =MAX(Table414[[#Totals],[Cnt]],2) -> 14 | C18: Name | D18: <Select> | E18: <Select> | F18: <Select> | I18: R5
A19: Staff Section | B19: 1 | C19: Other (non-Dev) | D19: Pega | E19: Practice Leader | F19: 0.1 | G19: 1 | H19: 0
A20: Staff Section | B20: 1 | C20: Scrum Master | D20: Pega | E20: Engagement Leader | F20: 1 | G20: 1 | H20: 0
A21: Staff Section | B21: 1 | C21: Team Member | D21: Pega | E21: (L/S) Business Architect | F21: 1 | G21: 1 | H21: 0.5
A22: Staff Section | B22: 1 | C22: Team Member | D22: Pega | E22: Lead System Architect | F22: 1 | G22: 1 | H22: 0.6
A23: Staff Section | B23: 1 | C23: Team Member | D23: Pega | E23: (Sr) System Architect | F23: 1 | G23: 1 | H23: 1
A24: Staff Section | B24: 1 | C24: Team Member | D24: Pega | E24: (Sr) System Architect | F24: 1 | G24: 1 | H24: 1
A25: Staff Section | B25: 1 | C25: Team Member | D25: Pega | E25: Experience Designer | F25: 0.5 | G25: 1 | H25: 1
A26: Staff Section | B26: 1 | C26: Other (non-Dev) | D26: Client | E26: Product Owner | F26: 1 | G26: 1 | H26: 0
A27: Staff Section | B27: 1 | C27: Team Member | D27: Client | E27: Test Lead | F27: 1 | G27: 1 | H27: 1
A28: Staff Section | B28: 1 | C28: Team Member | D28: Client | E28: Tester | F28: 1 | G28: 1 | H28: 1
A29: Staff Section | B29: 1 | C29: Team Member | D29: Client | E29: Tester | F29: 1 | G29: 1 | H29: 1
A30: Staff Section | B30: 1 | C30: Team Member | D30: Client | E30: Business Architect | F30: 1 | G30: 0.4 | H30: 1
A31: Staff Section | B31: 1 | C31: Team Member | D31: Client | E31: System Architect | F31: 1 | G31: 0.4 | H31: 1
A32: Staff Section | B32: 1 | C32: Team Member | D32: Client | E32: System Architect | F32: 1 | G32: 0.4 | H32: 1
A33: Other Section | B33: =MAX(OtherRowCnt,2) -> 2 | C33: Parameter | D33: Percent
A34: Other Section | B34: 1
A35: Other Section | B35: 1

Sheet Dropdowns (hidden)
A1: Release | D1: LMH | G1: Priority | I1: Interfaces | K1: Complexity | N1: Interface Type | P1: Connector Type | R1: Service Type | T1: Select | V1: All | X1: App Maturity | AA1: Methodology | AC1: Channels | AE1: Project Lead | AH1: Pega Version | AJ1: Staffing Model | AL1: Fibonacci
A2: <Select> | B2: 0 | D2: <Select> | E2: 0 | G2: <Select> | I2: <Select> | K2: <Select> | L2: 0 | N2: <Select> | P2: <Select> | R2: <Select> | T2: <Select> | V2: All | X2: <Select> | Y2: 0 | AA2: Agile/Scrum | AC2: 0 | AE2: <Select> | AH2: <Select> | AJ2: <Select> | AL2: 1
A3: MLP1 | B3: 1 | D3: Low | E3: 2 | G3: 1 | I3: Existing | J3: 1 | K3: OOTB | L3: 1 | N3: Connector | P3: Connect Adobe PDF | R3: Service Adobe PDF | X3: High Maturity Strategic App | Y3: 1 | AA3: Waterfall/Other | AC3: 0.25 | AE3: Co-Production | AF3: CoProdStaff | AH3: 8.5 | AJ3: Pega Led | AL3: 2
A4: MLP2 | B4: 2 | D4: Medium | E4: 3 | G4: 2 | I4: New | J4: 2 | K4: Low | L4: 2 | N4: Service | P4: Connect BPEL | R4: Service BPEL | X4: Medium Maturity Strategic App | Y4: 2 | AC4: 0.5 | AE4: Non-Co-Production | AF4: PegaLedStaff | AH4: 8.4 | AJ4: Partner Led | AL4: =AL3+AL2 -> 3
A5: MLP3 | B5: 3 | D5: High | E5: 4 | G5: 3 | J5: 3 | K5: Medium | L5: 3 | P5: Connect CMIS | R5: Service COM | X5: Low Maturity Strategic App | Y5: 3 | AC5: 0.75 | AH5: 8.3 | AJ5: <Select> | AL5: 5
A6: MLP4 | B6: 4 | G6: 4 | J6: 4 | K6: High | L6: 4 | P6: Connect dotNet | R6: Service CORBA | X6: Mix of Strat App & Platform | Y6: 4 | AC6: 1 | AH6: 8.2 | AJ6: Pega Led / Client Co-Prod | AL6: 8
A7: Future | B7: 5 | G7: 5 | J7: 5 | K7: Complex | L7: 5 | P7: Connect Directed Web Access | R7: Service dotNet | X7: 100% Platform | Y7: 5 | AH7: 8.1 | AJ7: Partner Led / Client Co-Prod | AL7: 13
G8: 6 | P8: Connect EJB | R8: Service EJB | AH8: 7.x | AL8: 21
G9: 7 | P9: Connect File | R9: Service Email | AJ9: Staff Aug | AL9: 34
G10: 8 | P10: Connect FTP | R10: Service File | AJ10: Pega Advisory Services
G11: 9 | P11: Connect HTTP | R11: Service Http
G12: 10 | P12: Connect Java | R12: Service Java
C13: 1 | D13: OOTB | P13: Connect JCA | R13: Service JMS
C14: 2 | D14: Low | P14: Connect JMS | R14: Service JSR94
C15: 3 | D15: Medium | P15: Connect MQ | R15: Service MQ
C16: 4 | D16: High | P16: Connect PegaDISTRIBUTION Manager | R16: Service Pegasystems SnapStart
P17: Connect PegaIMAGE Manager | R17: Service Portlet
P18: Connect REST | R18: Service REST
D19: None | E19: 0 | P19: Connect SAP | R19: Service SAP
D20: Low | E20: 1 | P20: Connect SAPJCo | R20: Service SAPJCo
D21: Medium | E21: 2 | P21: Connect SOAP | R21: Service SOAP
D22: High | E22: 3 | P22: Connect SQL | R22: PegaCALL for PegaRULES
P23: Other | R23: Other
P24: Unknown | R24: Unknown

Sheet Tabs (hidden)
A1: Navigation Order | B1: Modified | C1: Tab Name | E1: Context Menu
A2: =MID(CELL("filename",'Project Summary'!$A$1),FIND("]",CELL("filename",'Project Summary'!$A$1))+1,25) -> Project Summary | B2: FALSE | E2: =MID(CELL("filename",Microjourneys!$A$1),FIND("]",CELL("filename",Microjourneys!$A$1))+1,25) -> Microjourneys
A3: =MID(CELL("filename",Interfaces!$A$1),FIND("]",CELL("filename",Interfaces!$A$1))+1,25) -> Interfaces | B3: FALSE | C3: =IF(B3, MID(A3,4,100) & ", ","") ->  | E3: =MID(CELL("filename",'Case Types'!$A$1),FIND("]",CELL("filename",'Case Types'!$A$1))+1,25) -> Case Types
A4: =MID(CELL("filename",Personas!$A$1),FIND("]",CELL("filename",Personas!$A$1))+1,25) -> Personas | B4: FALSE | E4: =MID(CELL("filename",'Supporting Features'!$A$1),FIND("]",CELL("filename",'Supporting Features'!$A$1))+1,25) -> Supporting Features
A5: =MID(CELL("filename",'Case Types'!$A$1),FIND("]",CELL("filename",'Case Types'!$A$1))+1,25) -> Case Types | B5: FALSE | E5: =MID(CELL("filename",Interfaces!$A$1),FIND("]",CELL("filename",Interfaces!$A$1))+1,25) -> Interfaces
A6: =MID(CELL("filename",'Supporting Features'!$A$1),FIND("]",CELL("filename",'Supporting Features'!$A$1))+1,25) -> Supporting Features | B6: FALSE | E6: =MID(CELL("filename",Personas!$A$1),FIND("]",CELL("filename",Personas!$A$1))+1,25) -> Personas
A7: =MID(CELL("filename",Reports!$A$1),FIND("]",CELL("filename",Reports!$A$1))+1,25) -> Reports | B7: FALSE | E7: =MID(CELL("filename",Reports!$A$1),FIND("]",CELL("filename",Reports!$A$1))+1,25) -> Reports
A8: =MID(CELL("filename",'Project Attributes'!$A$1),FIND("]",CELL("filename",'Project Attributes'!$A$1))+1,25) -> Project Attributes | B8: FALSE
B9: =OR(B3:B8) -> FALSE | C9: =IFERROR(LEFT(C2&C3&C4&C5&C6&C7&C8, LEN(C2&C3&C4&C5&C6&C7&C8)-2),"") -> 
A10: WorkFlag | B10: TRUE
